Workbook

Sheet 卫生保健岗
A1: 贵阳幼儿师范高等专科学校实验幼儿园2025年公开招聘工作人员面试成绩及进入体检环节人员名单
A2: 序号 | B2: 单位及代码 | C2: 单位名称 | D2: 岗位及代码 | E2: 姓名 | F2: 考生考号 | G2: 笔试成绩 | H2: 笔试成绩30% | I2: 专业测试成绩 | J2: 专业测试成绩40% | K2: 面试成绩 | L2: 面试成绩30% | M2: 总成绩=笔试+面试成绩 | N2: 综合排名 | O2: 是否进入体检 | P2: 备注
A3: 1 | B3: 20101017001 | C3: 贵阳幼儿师范高等专科学校实验幼儿园 | D3: 20101017002 | E3: 曾艳 | F3: 1152014101130 | G3: 154 | H3: =G3/3*0.3 -> 15.4 | I3: 83.85 | J3: =I3*0.4 -> 33.54 | K3: 81.20 | L3: =K3*0.3 -> 24.36 | M3: =H3+J3+L3 -> 73.30 | N3: 1 | O3: 是
A4: 2 | B4: 20101017001 | C4: 贵阳幼儿师范高等专科学校实验幼儿园 | D4: 20101017002 | E4: 徐红菲 | F4: 1152014101723 | G4: 161.5 | H4: =G4/3*0.3 -> 16.15 | I4: 82.5 | J4: =I4*0.4 -> 33 | K4: 80.20 | L4: =K4*0.3 -> 24.06 | M4: =H4+J4+L4 -> 73.21 | N4: 2 | O4: 否
A5: 3 | B5: 20101017001 | C5: 贵阳幼儿师范高等专科学校实验幼儿园 | D5: 20101017002 | E5: 郝沙沙 | F5: 1152014102223 | G5: 153 | H5: =G5/3*0.3 -> 15.3 | I5: 78.1 | J5: =I5*0.4 -> 31.24 | K5: 85.20 | L5: =K5*0.3 -> 25.56 | M5: =H5+J5+L5 -> 72.10 | N5: 3 | O5: 否

Sheet 教师岗
A1: 贵阳幼儿师范高等专科学校实验幼儿园2025年公开招聘工作人员面试（试教）成绩及进入体检环节人员名单
A2: 序号 | B2: 单位及代码 | C2: 单位名称 | D2: 岗位及代码 | E2: 姓名 | F2: 考生考号 | G2: 笔试成绩 | H2: 笔试成绩40% | I2: 面试成绩 | J2: 面试成绩60% | K2: 总成绩=笔试+面试成绩 | L2: 综合排名 | M2: 是否进入体检 | N2: 备注
A3: 1 | B3: 20101017001 | C3: 贵阳幼儿师范高等专科学校实验幼儿园 | D3: 20101017001 | E3: 张田田 | F3: 1152014101313 | G3: 182 | H3: =G3/3*0.4 -> 24.27 | I3: 85.60 | J3: =I3*0.6 -> 51.36 | K3: =H3+J3 -> 75.63 | L3: 1 | M3: 是
A4: 2 | B4: 20101017001 | C4: 贵阳幼儿师范高等专科学校实验幼儿园 | D4: 20101017001 | E4: 周智晗 | F4: 1152014100227 | G4: 176.5 | H4: =G4/3*0.4 -> 23.53 | I4: 79.60 | J4: =I4*0.6 -> 47.76 | K4: =H4+J4 -> 71.29 | L4: 5 | M4: 否
A5: 3 | B5: 20101017001 | C5: 贵阳幼儿师范高等专科学校实验幼儿园 | D5: 20101017001 | E5: 张益 | F5: 1152014101511 | G5: 173.5 | H5: =G5/3*0.4 -> 23.13 | I5: 85.00 | J5: =I5*0.6 -> 51 | K5: =H5+J5 -> 74.13 | L5: 2 | M5: 否
A6: 4 | B6: 20101017001 | C6: 贵阳幼儿师范高等专科学校实验幼儿园 | D6: 20101017001 | E6: 杨静 | F6: 1152014102312 | G6: 173 | H6: =G6/3*0.4 -> 23.07 | I6: 85.00 | J6: =I6*0.6 -> 51 | K6: =H6+J6 -> 74.07 | L6: 3 | M6: 否
A7: 5 | B7: 20101017001 | C7: 贵阳幼儿师范高等专科学校实验幼儿园 | D7: 20101017001 | E7: 李丹 | F7: 1152014101607 | G7: 169 | H7: =G7/3*0.4 -> 22.53 | I7: 78.40 | J7: =I7*0.6 -> 47.04 | K7: =H7+J7 -> 69.57 | L7: 6 | M7: 否
A8: 6 | B8: 20101017001 | C8: 贵阳幼儿师范高等专科学校实验幼儿园 | D8: 20101017001 | E8: 李明亚 | F8: 1152014100324 | G8: 168.5 | H8: =G8/3*0.4 -> 22.47 | I8: 82.50 | J8: =I8*0.6 -> 49.5 | K8: =H8+J8 -> 71.97 | L8: 4 | M8: 否
